bitfinex-derivatives/quotes_ETHF0:USTF0_20240907
["timestamp","ask_amount","ask_price","bid_price","bid_amount"]
[1725702032522,1.26,2283.6,2283.5,1.1316]
[1725702032723,1.26,2283.6,2283.5,10.22817646]
[1725702033124,1.69797,2283.6,2283.5,10.22817646]
[1725702035234,1.69797,2283.6,2283.5,9.09657646]
[1725702035430,3.64576,2283.7,2283.5,9.09657646]
[1725702035632,3.64576,2283.7,2283.6,4.1668]
[1725702036133,3.64576,2283.7,2283.6,9.09657646]
[1725702037027,0.43802,2283.3,2283.2,0.3871]
[1725702037232,1.69802,2283.3,2283.2,4.92977646]
[1725702037431,1.69802,2283.3,2283.2,9.09657646]
[1725702038038,1.26,2283.3,2283.2,9.09657646]
[1725702038339,1.26,2283.3,2283.2,9.53461646]
[1725702038540,1.26,2283.3,2283.2,9.09657646]
[1725702038726,1.26,2283.3,2283.2,9.53460646]
[1725702040938,3.2078,2283.7,2283.2,9.09657646]
[1725702041136,4.40915,2283.7,2283.6,4.1668]
[1725702042240,3.9712,2283.7,2283.3,0.3835]
[1725702042436,0.43797,2283.6,2283.5,4.1668]
[1725702044541,0.438,2283.4,2283.0,0.3673]
[1725702044739,0.7729,2283.3,2283.1,0.3715]
[1725702045240,0.7729,2283.3,2283.2,4.1668]
[1725702045441,0.7729,2283.3,2283.2,4.60484]
[1725702045641,0.7729,2283.3,2283.2,9.53461646]
[1725702046943,1.26,2283.4,2283.3,0.43802]
[1725702047142,1.26,2283.4,2283.3,4.97252]
[1725702047446,1.698,2283.4,2283.3,9.09657646]
[1725702047944,1.26,2283.4,2283.3,9.09657646]
[1725702049338,1.698,2283.4,2283.3,9.09657646]
[1725702051646,1.26,2283.4,2283.3,9.09657646]
[1725702051841,1.26,2283.4,2283.3,9.53459646]
[1725702053848,1.698,2283.4,2283.3,9.53459646]
[1725702054341,1.698,2283.4,2283.3,9.09657646]
[1725702055349,1.26,2283.4,2283.3,9.53459646]
[1725702056051,1.698,2283.4,2283.3,9.09657646]
[1725702057949,1.698,2283.4,2283.3,9.53459646]
[1725702058150,1.26,2283.4,2283.3,9.53459646]
[1725702058851,1.698,2283.4,2283.3,9.09657646]
[1725702059448,1.26,2283.4,2283.3,9.53459646]
[1725702059649,1.698,2283.4,2283.3,9.53459646]
[1725702060056,1.26,2283.4,2283.3,9.53459646]
[1725702060556,1.698,2283.4,2283.3,9.09657646]
[1725702061753,1.698,2283.4,2283.3,9.53459646]
[1725702064547,1.26,2283.4,2283.3,9.53459646]
[1725702067157,1.698,2283.4,2283.3,9.53459646]
[1725702067346,1.26,2283.4,2283.3,9.53459646]
[1725702068350,1.698,2283.4,2283.3,9.53459646]
[1725702070355,1.698,2283.5,2283.3,9.53459646]
[1725702070549,1.698,2283.5,2283.4,0.3927]
[1725702070750,1.698,2283.5,2283.4,4.9515]
[1725702070954,1.698,2283.5,2283.4,9.88127646]
[1725702073057,1.698,2283.5,2282.7,4.197]
[1725702073357,0.43808,2283.0,2282.9,4.1668]
[1725702073554,0.2146977,2283.0,2282.7,9.12677646]
[1725702073755,1.18005,2283.2,2282.9,4.6049]
[1725702073963,1.18005,2283.2,2283.1,4.1668]
[1725702075865,6.74296,2283.2,2283.1,4.1668]
[1725702076160,1.09516,2283.1,2282.7,4.197]
[1725702076352,1.26,2282.9,2282.7,9.51687646]
[1725702076556,4.4678,2282.9,2282.4,1.71337703]
[1725702076851,4.4678,2282.6,2281.7,5.91037703]
[1725702077051,1.09539,2282.7,2281.7,5.91037703]
[1725702077052,1.69828,2282.0,2281.7,9.12677646]
[1725702077262,1.69828,2282.0,2281.7,4.92977646]
[1725702077457,1.69828,2282.0,2281.9,4.1668]
[1725702077659,1.69828,2282.0,2281.9,9.09657646]
[1725702077855,1.69828,2282.0,2281.9,4.1668]
[1725702079865,1.69828,2282.0,2281.6,3.5729]
[1725702079866,0.4383,2281.9,2281.6,3.5729]
[1725702080060,0.4383,2281.9,2281.8,4.1668]
[1725702080566,0.4383,2281.9,2281.8,9.09657646]
[1725702081063,1.53404,2281.9,2281.8,4.1668]
[1725702081257,0.43836,2281.6,2281.4,0.3901]
[1725702081455,0.43837,2281.5,2281.4,5.31987646]
[1725702081758,0.43836,2281.6,2281.4,5.31987646]
[1725702082261,0.43836,2281.6,2281.5,4.1668]
[1725702082764,0.43836,2281.6,2281.5,9.09657646]
[1725702082960,0.43834,2281.7,2281.5,9.09657646]
[1725702083161,0.43834,2281.7,2281.5,4.92977646]
[1725702083357,0.43834,2281.7,2281.6,4.1668]
[1725702084661,11.15473986,2281.9,2281.6,9.09657646]
[1725702084863,6.4515256,2281.9,2281.8,4.1668]
[1725702085253,6.8898156,2281.9,2281.8,9.09657646]
[1725702085857,3.03,2282.1,2281.8,9.09657646]
[1725702086061,3.46822,2282.3,2282.2,4.1668]
[1725702088869,3.03,2282.3,2282.2,4.1668]
[1725702089277,3.46822,2282.3,2282.2,4.1668]
[1725702090166,3.03,2282.3,2282.2,4.1668]
[1725702091974,3.46822,2282.3,2282.2,4.1668]
[1725702097169,4.56377,2282.3,2282.2,4.1668]
[1725702098778,3.46822,2282.3,2282.2,4.1668]
[1725702099073,3.03,2282.3,2281.9,0.7541]
[1725702099375,3.03,2282.3,2282.1,4.1668]
[1725702099376,0.43823,2282.2,2282.1,4.1668]
[1725702099575,0.43823,2282.2,2281.9,6.12216646]
[1725702099883,0.43823,2282.2,2282.1,4.1668]
[1725702100379,0.43823,2282.2,2282.1,9.09657646]
[1725702101981,1.26,2282.2,2282.1,9.09657646]
[1725702102182,1.69823,2282.2,2282.1,9.09657646]
[1725702104276,2.79382,2282.2,2282.1,4.1668]
[1725702105173,0.43827,2282.0,2281.9,0.3794]
[1725702105376,1.69827,2282.0,2281.9,4.5462]
[1725702108590,2.35571,2282.0,2281.7,3.5688]
[1725702108893,1.69831,2281.8,2281.7,5.29077646]
[1725702109086,1.91744224,2281.8,2281.7,5.29077646]
[1725702109280,1.91744224,2281.8,2281.7,9.45757646]
[1725702111885,0.65744224,2281.8,2281.7,9.45757646]
[1725702115185,0.43829,2282.0,2281.7,9.53489646]
[1725702115384,0.3717,2282.1,2281.7,5.30797646]
[1725702115385,1.91264022,2281.9,2281.7,5.30797646]
[1725702115690,1.6983,2281.9,2281.7,5.30797646]
[1725702115987,1.6983,2281.9,2281.8,4.5482]
[1725702116290,1.47754195,2281.9,2281.8,4.5482]
[1725702116482,1.26,2281.9,2281.8,4.5482]
[1725702116886,1.69829,2281.9,2281.8,4.5482]
[1725702118686,0.43829,2281.9,2281.8,4.5482]
[1725702120380,1.69829,2282.0,2281.8,9.47797646]
[1725702120691,1.69829,2282.0,2281.9,4.1668]
[1725702122486,0.43829,2281.9,2281.8,0.3814]
[1725702122991,5.11829294,2281.9,2281.8,0.3814]
[1725702125382,0.43829,2281.9,2281.8,4.5482]
[1725702125585,1.26,2282.0,2281.8,4.5482]
[1725702125785,1.69829,2282.0,2281.9,4.1668]
[1725702125986,0.43823,2282.3,2281.9,9.09657646]
[1725702126186,8.41321,2282.6,2281.9,9.09657646]
[1725702126187,0.43821,2282.4,2282.2,4.1668]
[1725702126488,0.43821,2282.4,2282.3,4.5445]
[1725702127100,1.09563,2282.2,2281.7,5.33857416]
[1725702127295,1.26,2281.8,2281.7,6.44565062]
[1725702127496,1.9162848,2281.8,2281.7,5.30407646]
[1725702127694,1.9162848,2281.8,2281.7,4.5411]
[1725702127899,1.69831,2281.8,2281.7,4.5411]
[1725702128592,1.92213823,2281.8,2281.7,4.5411]
[1725702132099,5.12993823,2281.8,2281.7,4.5411]
[1725702135707,6.22572823,2281.8,2281.7,4.5411]
[1725702136907,5.12993823,2281.8,2281.7,4.5411]
[1725702137797,0.66213823,2281.8,2281.7,4.5411]
[1725702138000,0.66213823,2281.8,2281.7,9.47087646]
[1725702138200,0.43831,2281.8,2281.7,9.47087646]
[1725702138909,0.65475442,2281.8,2281.7,9.47087646]
[1725702143612,0.65475442,2281.8,2281.7,4.5411]
[1725702152111,0.21644442,2281.8,2281.6,1.14157416]
[1725702152313,0.43843,2281.2,2280.9,0.03952416]
[1725702152510,0.43845,2281.1,2281.0,4.5515]
[1725702152710,5.00103077,2281.1,2281.0,4.5515]
[1725702153318,5.39573077,2281.1,2281.0,4.5515]
[1725702154403,4.56258077,2281.1,2281.0,9.48127646]
[1725702154609,3.2078,2281.6,2281.0,9.48127646]
[1725702154813,1.26,2281.3,2281.0,5.31447646]
[1725702155018,1.26,2281.3,2281.2,0.43842]
[1725702155217,1.26,2281.3,2281.2,4.60522]
[1725702155416,1.26,2281.3,2281.2,9.53499646]
[1725702155904,6.67616,2281.6,2281.4,0.43838]
[1725702156103,6.2378,2281.6,2281.5,5.34577]
[1725702156310,6.67615,2281.6,2281.5,9.83717646]
[1725702156917,6.2378,2281.6,2281.5,10.63284646]
[1725702157708,6.67615,2281.6,2281.5,10.19447646]
[1725702158511,3.03,2281.6,2281.5,10.63284646]
[1725702158712,0.21495708,2281.7,2281.6,0.43835]
[1725702159017,0.22374637,2281.9,2281.8,0.43831]
[1725702159316,3.46828,2282.0,2281.8,4.60511]
[1725702159510,3.46828,2282.0,2281.9,4.1668]
[1725702159705,3.69125869,2282.0,2281.9,4.5241]
[1725702162905,6.89905869,2282.0,2281.9,4.5241]
[1725702163615,0.43832,2281.8,2281.5,1.17896]
[1725702163819,3.46832,2281.8,2281.6,0.3665]
[1725702164120,3.46832,2281.8,2281.7,4.1668]
[1725702167422,4.56411,2281.8,2281.7,4.1668]
[1725702167720,0.43837,2281.5,2281.4,0.3659]
[1725702167916,3.46837,2281.5,2281.4,4.5327]
[1725702168111,3.46837,2281.5,2281.4,4.1668]
[1725702168328,8.5036043,2281.5,2281.4,4.1668]
[1725702169624,0.4384,2281.4,2281.2,0.3671]
[1725702169822,0.4384,2281.4,2281.3,4.1668]
[1725702170222,5.45272606,2281.4,2281.3,4.1668]
[1725702177934,6.71272606,2281.4,2281.3,4.1668]
[1725702179923,6.71272606,2281.4,2281.3,9.09657646]
[1725702180334,6.71272606,2281.4,2281.3,9.45427646]
[1725702181431,1.6984,2281.4,2281.3,9.45427646]
[1725702183439,2.79438,2281.4,2281.3,9.09657646]
[1725702183633,0.4384,2281.4,2281.3,9.09657646]
[1725702183836,1.6984,2281.4,2281.3,9.09657646]
[1725702184141,0.43835,2281.6,2281.4,0.43838]
[1725702184333,0.43835,2281.6,2281.5,4.5538]
[1725702184832,0.43835,2281.6,2281.5,9.48357646]
[1725702185935,1.69835,2281.6,2281.5,9.48357646]
[1725702186138,6.00203,2281.6,2281.5,4.5538]
[1725702186928,6.00203,2281.6,2279.9,4.93001696]
[1725702186929,1.09641,2280.5,2279.9,4.93001696]
[1725702187230,4.5954841,2280.4,2280.1,0.43864]
[1725702187438,5.8554841,2280.4,2280.0,1.1355]
[1725702187640,5.10220192,2280.6,2280.3,4.1668]
[1725702187843,0.43858,2280.4,2280.3,4.1668]
[1725702188235,5.98780192,2280.4,2280.3,4.1668]
[1725702189637,9.63418192,2280.4,2280.3,4.1668]
[1725702190039,11.40418192,2280.4,2280.3,4.1668]
[1725702192439,10.96560192,2280.4,2280.3,4.1668]
[1725702192750,11.40418192,2280.4,2280.3,4.1668]
[1725702193131,10.96560192,2280.4,2280.3,4.1668]
[1725702193438,11.40418192,2280.4,2280.3,4.1668]
[1725702198936,3.2078,2280.9,2280.3,15.09657646]
[1725702199246,3.03,2280.8,2280.4,4.00477]
[1725702199441,1.27065077,2281.2,2280.7,3.2078]
[1725702199747,3.2078,2281.5,2281.0,3.64626]
[1725702199748,6.45259231,2281.5,2281.0,3.64626]
[1725702200049,6.2378,2281.5,2281.0,3.64626]
[1725702200537,6.2378,2281.5,2281.1,0.43844]
[1725702200939,3.03,2281.5,2281.3,3.2078]
[1725702201342,3.03,2281.5,2281.3,7.591]
[1725702201546,3.46837,2281.5,2281.3,7.591]
[1725702202241,3.46837,2281.5,2281.4,0.3588]
[1725702202443,3.46837,2281.5,2281.4,4.742]
[1725702202839,3.46837,2281.5,2281.4,0.3588]
[1725702203145,3.03,2281.5,2281.2,0.3907]
[1725702203448,0.43842,2281.3,2280.9,3.64628]
[1725702203646,5.61450947,2281.4,2281.0,0.43846]
[1725702204148,5.61450947,2281.4,2280.9,3.64627]
[1725702204449,0.43842,2281.3,2280.9,3.64627]
[1725702205047,0.43842,2281.3,2281.0,3.2078]
[1725702205349,5.17610947,2281.4,2281.0,3.64626]
[1725702205350,5.61450947,2281.4,2281.0,3.64626]
[1725702206147,0.43842,2281.3,2281.0,3.2078]
[1725702206349,5.61450947,2281.4,2281.0,3.64626]
[1725702208952,0.43841,2281.3,2281.0,3.2078]
[1725702209146,0.43841,2281.3,2281.0,3.64626]
[1725702210256,5.61450947,2281.4,2281.1,3.2078]
[1725702210556,0.43841,2281.3,2281.1,3.2078]
[1725702212257,5.61450947,2281.4,2281.1,3.2078]
[1725702214461,0.43841,2281.3,2281.1,3.2078]
[1725702215251,5.61450947,2281.4,2281.1,3.2078]
[1725702215457,5.61450947,2281.4,2281.1,3.64624]
[1725702219164,5.97100947,2281.4,2281.1,3.64624]
[1725702219964,1.26,2281.3,2281.1,3.64624]
[1725702220763,0.7396,2281.4,2281.2,0.43841]
[1725702220962,1.9996,2281.4,2281.2,0.43841]
[1725702221265,1.9996,2281.4,2281.2,0.43842]
[1725702221460,2.43799,2281.4,2281.2,0.43842]
[1725702221960,2.43799,2281.4,2281.1,3.64623]
[1725702222363,2.438,2281.4,2281.1,3.64623]
[1725702222863,1.69843,2281.2,2280.8,3.5753]
[1725702223063,1.69844,2281.2,2280.9,0.80378]
[1725702223562,1.26,2281.2,2280.9,0.80378]
[1725702223770,1.69844,2281.2,2280.9,0.80378]
[1725702224366,1.69844,2281.2,2281.0,0.43846]
[1725702224565,1.26,2281.2,2280.9,0.80378]
[1725702224767,0.43845,2281.1,2280.9,0.80378]
[1725702224964,1.69844,2281.2,2280.9,0.80378]
[1725702226360,0.43841,2281.3,2280.9,0.3653]
[1725702226562,2.438,2281.4,2281.1,0.43844]
[1725702227065,0.43841,2281.3,2281.0,0.43845]
[1725702227262,0.43843,2281.2,2280.9,0.3653]
[1725702227471,0.43843,2281.2,2281.0,0.43846]
[1725702229866,0.3654,2281.3,2281.2,0.43843]
[1725702230064,0.3654,2281.3,2280.9,0.3653]
[1725702230463,0.80381,2281.3,2281.1,0.43844]
[1725702231467,0.3654,2281.3,2281.1,0.43844]
[1725702231970,0.3654,2281.3,2281.2,0.43843]
[1725702232185,0.3654,2281.3,2281.1,3.64623]
[1725702234065,0.3654,2281.3,2281.2,0.43843]
[1725702234266,0.3654,2281.3,2281.2,0.82983]
[1725702234467,0.3654,2281.3,2281.2,0.3914]
[1725702235174,0.80381,2281.3,2281.2,0.3914]
[1725702235470,0.3654,2281.3,2281.2,0.82983]
[1725702236876,0.3654,2281.3,2281.2,0.3914]
[1725702237170,0.3654,2281.3,2281.2,0.82983]
[1725702238274,0.3654,2281.3,2281.2,0.3914]
[1725702239879,0.7396,2281.4,2281.3,0.43841]
[1725702240074,0.3831,2281.4,2281.2,0.82982]
[1725702241782,0.3831,2281.4,2281.2,1.21602]
[1725702242772,0.82149,2281.4,2281.2,1.21602]
[1725702243074,0.82149,2281.4,2281.2,0.82982]
[1725702243379,0.7274,2281.6,2281.2,4.7746]
[1725702243574,0.7274,2281.6,2281.3,0.3581]
[1725702243979,0.7274,2281.6,2281.4,0.43837]
[1725702244175,0.7274,2281.6,2281.5,0.43837]
[1725702244882,0.7274,2281.6,2281.4,0.43837]
[1725702245086,0.7274,2281.6,2281.5,0.43837]
[1725702245774,2.42576,2281.6,2281.2,0.3914]
[1725702245976,1.26,2281.4,2281.2,0.3914]
[1725702246377,1.26,2281.4,2281.3,0.43841]
[1725702249179,1.69839,2281.4,2281.2,0.82981]
[1725702249582,1.26,2281.4,2281.2,0.82981]
[1725702249781,1.26,2281.4,2281.2,0.3914]
[1725702249983,0.79551,2281.3,2281.2,0.3914]
[1725702250184,0.43843,2281.2,2281.0,0.43846]
[1725702250483,0.43843,2281.2,2281.0,0.82586]
[1725702250680,1.18343,2281.2,2281.0,0.82586]
[1725702253977,0.745,2281.2,2281.1,0.43845]
[1725702254383,0.3571,2281.3,2281.2,0.43843]
[1725702254590,1.19768,2281.5,2281.3,0.4384]
[1725702254783,1.57308,2281.5,2281.2,0.43841]
[1725702255085,1.57308,2281.5,2281.3,0.43841]
[1725702255284,1.1347,2281.5,2281.4,0.43839]
[1725702255483,1.1347,2281.5,2281.4,0.80089]
[1725702258286,0.3754,2281.5,2281.4,5.18409]
[1725702265395,1.26,2281.6,2281.5,0.43837]
[1725702267492,1.69835,2281.6,2281.4,4.00868]
[1725702267694,1.26,2281.6,2281.5,0.43837]
[1725702270094,0.33402027,2282.1,2281.8,0.4383]
[1725702270298,0.22018316,2282.3,2282.0,4.4678]
[1725702270602,1.37158316,2282.3,2282.1,0.3824]
[1725702270799,1.37158316,2282.3,2282.1,0.82064]
[1725702271189,1.1514,2282.3,2282.2,0.43823]
[1725702271593,0.7656,2282.3,2282.2,0.43823]
[1725702272002,0.82399,2282.5,2282.2,4.81983]
[1725702272194,0.4382,2282.4,2282.2,0.43823]
[1725702273607,0.7526,2282.5,2282.4,0.4382]
[1725702273999,1.19078,2282.5,2282.3,3.646]
[1725702274808,1.19078,2282.5,2282.3,3.64601]
[1725702276101,0.4382,2282.4,2282.3,3.2078]
[1725702276496,2.0126,2282.5,2282.3,3.2078]
[1725702276692,0.4382,2282.4,2282.3,3.2078]
[1725702276895,0.43823,2282.3,2282.1,0.3824]
[1725702277102,0.3786,2282.2,2282.1,0.3824]
[1725702277604,0.3786,2282.2,2282.1,0.82065]
[1725702279095,0.3786,2282.2,2282.1,0.3824]
[1725702279308,0.81683,2282.2,2282.1,0.3824]
[1725702279608,0.3786,2282.2,2282.1,0.3824]
[1725702280710,0.3786,2282.2,2282.1,0.82065]
[1725702282804,0.3786,2282.2,2282.1,0.3824]
[1725702283704,0.3786,2282.2,2282.1,0.82065]
[1725702292527,0.3786,2282.2,2282.1,4.02845]
[1725702295324,0.7526,2282.5,2282.4,0.4382]
[1725702295532,1.1204,2282.5,2282.4,0.4382]
[1725702297437,0.3668,2282.5,2282.4,0.4382]
[1725702298040,3.9704,2282.7,2282.6,0.43816]
[1725702298232,4.3331,2282.7,2282.6,0.43816]
[1725702299134,1.1253,2282.7,2282.6,0.43816]
[1725702300238,0.3627,2282.7,2282.6,4.81896]
[1725702301639,0.3627,2282.7,2282.6,0.43816]
[1725702302340,0.3627,2282.7,2282.6,4.81896]
[1725702304842,0.3627,2282.7,2282.6,0.43816]
[1725702305942,0.80084,2282.7,2282.5,0.82006]
[1725702306143,0.3627,2282.7,2282.6,0.43816]
[1725702309148,2.46821,2282.9,2282.7,0.43813]
[1725702309837,2.46821,2282.9,2282.8,0.43812]
[1725702310034,1.2243209,2282.9,2282.7,0.43813]
[1725702310242,1.20821,2282.9,2282.7,0.43813]
[1725702310547,1.20821,2282.9,2282.5,4.3279]
[1725702310548,0.7701,2282.9,2282.8,0.43812]
[1725702311543,1.2082,2282.9,2282.8,0.43812]
[1725702313640,0.7701,2282.9,2282.8,0.43812]
[1725702313947,1.2082,2282.9,2282.8,0.43812]
[1725702314148,0.7701,2282.9,2282.8,0.43812]
[1725702314548,1.2082,2282.9,2282.8,0.43812]
[1725702314742,0.7701,2282.9,2282.8,0.43812]
[1725702315345,1.2082,2282.9,2282.7,0.43812]
[1725702315643,1.2082,2282.9,2282.8,0.43812]
[1725702317542,0.43814,2282.7,2282.6,0.43815]
[1725702318539,0.43813,2282.8,2282.5,3.5897]
[1725702318843,0.43813,2282.8,2282.6,0.43814]
[1725702319150,0.43813,2282.8,2282.7,0.43814]
[1725702319449,0.43813,2282.8,2282.6,0.43814]
[1725702319648,0.43814,2282.7,2282.6,0.43814]
[1725702320346,0.43814,2282.7,2282.6,4.81894]
[1725702320542,0.43814,2282.7,2282.6,0.43814]
[1725702320738,0.43813,2282.8,2282.7,0.43813]
[1725702320941,0.7701,2282.9,2282.8,0.43812]
[1725702321150,0.3782,2282.9,2282.8,4.90592]
[1725702321338,0.3782,2282.9,2282.8,3.64592]
[1725702321535,0.8163,2282.9,2282.7,1.26]
[1725702321740,0.8163,2282.9,2282.7,1.69813]
[1725702322347,0.8163,2282.9,2282.8,0.43812]
[1725702323256,0.8163,2282.9,2282.7,1.26]
[1725702323257,0.8163,2282.9,2282.7,1.69812]
[1725702323556,0.8163,2282.9,2282.8,0.43812]
[1725702324245,0.3782,2282.9,2282.8,0.43812]
[1725702324547,0.8163,2282.9,2282.8,0.43812]
[1725702326353,0.3782,2282.9,2282.8,0.43812]
[1725702326657,0.8163,2282.9,2282.8,0.43812]
[1725702327360,0.43809,2283.0,2282.9,0.4381]
[1725702327558,0.43808,2283.0,2282.8,0.43811]
[1725702327857,0.4381,2282.9,2282.8,0.43811]
[1725702328253,0.4381,2282.9,2282.8,4.81891]
[1725702330144,0.3588,2283.0,2282.8,4.81891]
[1725702330350,0.3588,2283.0,2282.9,1.6981]
[1725702330852,0.3588,2283.0,2282.9,6.0781]
[1725702331753,0.3799,2283.1,2283.0,0.43808]
[1725702335558,0.3588,2283.2,2283.1,0.43806]
[1725702336453,4.30266,2283.8,2283.2,0.43804]
[1725702336762,4.30266,2283.8,2283.5,0.43798]
[1725702336763,0.3825,2283.6,2283.5,0.43798]
[1725702336950,0.3825,2283.6,2283.5,1.69798]
[1725702337154,0.3825,2283.6,2283.5,0.43798]
[1725702337461,0.3825,2283.6,2283.4,3.6458]
[1725702337653,0.82048,2283.6,2283.4,3.6458]
[1725702339556,0.43798,2283.5,2283.4,3.2078]
[1725702339957,0.82048,2283.6,2283.4,3.6458]
[1725702340761,0.43798,2283.5,2283.4,3.2078]
[1725702341062,0.82048,2283.6,2283.4,3.6458]
[1725702341266,0.3825,2283.6,2283.5,0.43798]
[1725702341457,0.3825,2283.6,2283.5,0.83288]
[1725702343862,0.364,2283.7,2283.6,0.43797]
[1725702345766,0.364,2283.7,2283.6,4.81717]
[1725702345968,0.364,2283.7,2283.6,6.07717]
[1725702346459,0.7292,2283.9,2283.8,0.43793]
[1725702347060,0.7292,2283.9,2283.8,0.80133]
[1725702347956,0.3672,2283.9,2283.8,0.80133]
[1725702348362,0.3834,2284.0,2283.9,0.43791]
[1725702349661,3.64565,2284.2,2284.0,0.43788]
[1725702349861,3.64565,2284.2,2284.1,0.3922]
[1725702350863,3.64565,2284.2,2284.0,0.43788]
[1725702353164,0.43787,2284.1,2283.9,0.83009]
[1725702353668,3.64565,2284.2,2284.0,0.43789]
[1725702353867,0.3747,2284.1,2284.0,0.43789]
[1725702354967,0.3747,2284.1,2284.0,1.69789]
[1725702355356,3.2078,2284.2,2284.1,0.43787]
[1725702355561,1.0864,2284.3,2284.2,0.43785]
[1725702356061,11.23868988,2284.7,2284.2,4.3776]
[1725702356267,0.43777,2284.6,2284.4,0.4378]
[1725702356467,12.39370833,2284.7,2284.5,0.43779]
[1725702356771,0.43778,2284.6,2284.4,0.4378]
[1725702356967,0.43779,2284.5,2284.3,5.29402]
[1725702357173,1.09449,2284.5,2284.0,3.2078]
[1725702357364,0.43785,2284.3,2284.0,3.64568]
[1725702357667,1.19365,2284.2,2284.0,3.64568]
[1725702358172,0.3944,2284.1,2284.0,3.64568]
[1725702360372,0.3944,2284.1,2284.0,0.43788]
[1725702361570,0.7558,2284.2,2284.1,0.43787]
[1725702361874,0.7558,2284.2,2284.1,1.69787]
[1725702363482,0.3751,2284.2,2284.1,1.69787]
[1725702363862,0.3817,2284.4,2284.1,1.26]
[1725702364069,0.3817,2284.4,2284.3,0.43783]
[1725702364467,0.7443,2284.5,2284.4,0.43781]
[1725702364869,0.7443,2284.5,2284.4,4.81541]
[1725702365770,0.7443,2284.5,2284.4,0.43781]
[1725702366975,0.43792,2283.9,2283.6,3.2078]
[1725702367273,0.7711,2283.8,2283.7,0.43795]
[1725702367470,1.141,2283.8,2283.7,0.43795]
[1725702368867,1.57893,2283.8,2283.6,3.64575]
[1725702369065,1.57893,2283.8,2283.5,7.59504]
[1725702369066,0.43795,2283.7,2283.5,7.59504]
[1725702369265,1.141,2283.8,2283.5,3.83637]
[1725702369266,1.57894,2283.8,2283.5,3.83637]
[1725702370581,1.141,2283.8,2283.6,0.43796]
[1725702370767,1.141,2283.8,2283.5,3.3984]
[1725702370768,1.141,2283.8,2283.7,0.43795]
[1725702370967,1.141,2283.8,2283.6,0.43796]
[1725702371175,1.57893,2283.8,2283.6,0.43796]
[1725702371376,1.57893,2283.8,2283.5,7.04417]
[1725702371562,1.141,2283.8,2283.6,0.43796]
[1725702371762,1.141,2283.8,2283.5,6.6062]
[1725702371972,0.7711,2283.8,2283.5,6.6062]
[1725702372977,0.7711,2283.8,2283.7,0.43795]
[1725702375981,1.15505,2284.2,2284.0,0.43788]
[1725702376175,1.15505,2284.2,2284.1,0.3812]
[1725702376581,1.15505,2284.2,2283.9,3.2078]
[1725702376582,1.15505,2284.2,2283.9,3.6457]
[1725702378579,0.43787,2284.1,2283.9,3.6457]
[1725702378784,0.43787,2284.1,2283.8,0.81911]
[1725702378985,0.43787,2284.1,2283.9,0.4379]
[1725702380986,0.7172,2284.2,2284.0,0.43787]
[1725702381184,0.7172,2284.2,2284.1,0.82127]
[1725702382576,0.43782,2284.4,2284.2,0.43784]
[1725702383086,1.17521,2284.5,2284.2,0.43784]
[1725702383583,1.17521,2284.5,2284.4,0.43781]
[1725702383584,0.3674,2284.5,2284.4,0.43781]
[1725702391490,0.3674,2284.5,2284.1,4.56131486]
[1725702391683,0.79872,2284.4,2284.1,0.82126]
[1725702391993,0.3886,2284.3,2284.1,2.08126]
[1725702392492,0.82644,2284.3,2284.1,2.08126]
[1725702392683,0.3886,2284.3,2284.1,2.08126]
[1725702393084,0.79872,2284.4,2284.2,0.43785]
[1725702393292,0.3609,2284.4,2284.2,1.69785]
[1725702393689,0.79872,2284.4,2284.2,1.69785]
[1725702396096,0.3609,2284.4,2284.2,1.69785]
[1725702396395,0.79871,2284.4,2284.2,1.69785]
[1725702397696,0.3609,2284.4,2284.3,0.43783]
[1725702398591,0.3609,2284.4,2284.2,1.69784]
[1725702398891,0.3609,2284.4,2284.2,1.69783]
[1725702399091,0.3609,2284.4,2284.2,1.26]
[1725702399298,0.3609,2284.4,2284.3,0.43783]
[1725702399498,0.79871,2284.4,2284.2,1.69784]
[1725702399686,0.3609,2284.4,2284.2,1.69784]
[1725702400297,0.3609,2284.4,2284.3,0.43783]
[1725702400785,0.79872,2284.4,2284.2,0.43784]
[1725702401190,0.3609,2284.4,2284.2,0.43784]
[1725702401400,0.79871,2284.4,2284.2,0.43784]
[1725702401699,0.43787,2284.1,2284.0,1.14791486]
[1725702401895,1.09473,2284.0,2283.7,1.14791486]
[1725702402101,0.43795,2283.7,2283.5,1.14791486]
[1725702402302,0.43795,2283.7,2283.4,5.36801696]
[1725702402303,1.1294,2283.6,2283.4,4.79371486]
[1725702403100,1.1294,2283.6,2283.4,4.35571486]
[1725702404193,1.1294,2283.6,2283.4,4.79371486]
[1725702404495,1.1294,2283.6,2283.4,3.6458]
[1725702405089,1.1294,2283.6,2283.4,4.79371486]
[1725702405499,1.1294,2283.6,2283.5,0.43798]
[1725702405800,1.1294,2283.6,2283.4,3.2078]
[1725702405994,1.1294,2283.6,2283.4,3.64579]
[1725702406396,1.1294,2283.6,2283.5,0.43798]
[1725702406899,1.1294,2283.6,2283.4,3.64579]
[1725702409301,0.43794,2283.8,2283.6,0.72999156]
[1725702410400,0.7544,2284.0,2283.8,0.29205156]
[1725702410702,0.43791,2283.9,2283.8,0.29205156]
[1725702410997,4.81631,2283.9,2283.8,0.29205156]
[1725702411295,1.84916,2284.0,2283.5,0.43798]
[1725702411499,0.43793,2283.8,2283.5,0.43798]
[1725702412498,0.3693,2283.7,2283.5,0.43798]
[1725702412699,0.3659,2283.6,2283.4,3.64579]
[1725702412906,1.19147,2283.6,2283.4,3.2078]